[Event "4NCL Div 2 2024-25"]
[Site "England"]
[Date "2025.01.26"]
[Round "4.5"]
[White "Murawski, Jan"]
[Black "Taylor, William J"]
[Result "1-0"]
[Annotator "TA"]
[ECO "D37"]
[WhiteElo "2065"]
[BlackElo "1994"]
[PlyCount "83"]
[EventDate "2024.11.23"]
[EventType "team-tourn"]
[EventCountry "ENG"]
[SourceTitle "playchess.com"]
[Source "ChessBase"]
[SourceQuality "1"]
[TimeControl "40/6000+30:3000+30"]

{[%evp 9,82,14,28,27,35,27,28,36,29,30,28,29,35,36,32,27,31,-4,0,0,0,0,-3,-18,-14,-31,-17,-13,-5,-16,-12,-12,-12,-46,-10,-32,-12,-11,-11,-13,-12,-87,-76,-83,-68,-37,-34,-72,-73,-92,-52,-78,0,0,63,77,50,0,0,0,3,0,256,266,494,252,897,792,29996,29997,29997,29998,29998,29999,29999]} 1. d4 {[%emt 0:10:04]} d5 {[%emt 0:10:09]} 2. c4 {[%emt 0:00:02]} e6 {[%emt 0:00:07]} 3. Nc3 {[%emt 0:00:03]} Nf6 {[%emt 0:00:05]} 4. Nf3 {[%emt 0:00:03]} a6 {[%emt 0:00:51]} 5. cxd5 {[%emt 0:00:08]} exd5 {[%emt 0:00:05]} 6. Bg5 {[%emt 0:00:04] D37: Queen's Gambit Declined: 5 Bf4.} Be6 {[%emt 0:00:28]} 7. e3 {[%emt 0:00:46]} Nbd7 {[%emt 0:01:51]} 8. Bd3 {[%emt 0:00:34] White has an edge.} Bd6 {[%emt 0:00:12]} 9. O-O {[%emt 0:00:13]} c6 {[%emt 0:00:06]} 10. Bf4 {[%emt 0:00:13]} Qc7 {[%emt 0:03:18]} 11. Qd2 $1 {[%emt 0:00:24][%mdl 4] is currently scoring better than 11.Bxd6.} O-O {[%emt 0:04:18]} 12. Rfc1 {[%emt 0:06:21]} Nb6 $146 {[%emt 0:14:25]} (12... Rfe8 13. Na4 Ne4 14. Bxe4 dxe4 15. Ng5 Bxf4 16. exf4 Bd5 17. Rc3 h6 18. Nh3 Nf6 {1-0 Palencia Morales,W (2180)-Matveeva,O (2156) Titled Tuesday intern op 20th Feb Early blitz 2024 (9)}) 13. Bg3 {[%emt 0:20:07]} Bxg3 {[%emt 0:09:36]} 14. hxg3 {[%emt 0:00:16]} Nc8 {[%emt 0:00:05]} 15. Na4 {[%emt 0:04:57]} Nd6 {[%emt 0:02:53]} 16. Qc2 {[%emt 0:07:42]} g6 {[%emt 0:06:02]} 17. Nc5 {[%emt 0:03:41]} Bf5 {[%emt 0:00:19]} 18. Bxf5 {[%emt 0:00:36]} Nxf5 {[%emt 0:00:04]} 19. Ne5 {[%emt 0:01:12][%cal Bf3e5,Be5d3,Bd3c5][%mdl 32]} Nd6 {[%emt 0:03:49]} 20. g4 {[%emt 0:12:59]} Nfe4 {[%emt 0:10:04]} 21. b4 {[%emt 0:07:30]} Rfe8 {[%emt 0:28:00]} 22. a4 {[%emt 0:04:40]} f6 {[%emt 0:00:43]} 23. Nxe4 {[%emt 0:01:23]} Nxe4 {[%emt 0:01:30]} 24. Nd3 {[%emt 0:00:41][%cal Ob4b5]} Nd6 {[%emt 0:02:21]} 25. Qc5 {[%emt 0:02:26]} (25. Qd1 $1 $11) 25... Qd7 $17 {[%emt 0:03:21][%cal Oa8c8]} 26. Re1 {[%emt 0:01:58]} Rad8 {[%emt 0:04:14]} 27. f3 {[%emt 0:01:20]} Re7 {[%emt 0:00:45]} 28. Qc3 {[%emt 0:00:50]} Rde8 {[%emt 0:01:32]} 29. Nc5 {[%emt 0:01:34]} Qc8 {[%emt 0:00:25]} 30. Ra2 {[%emt 0:01:05] [#]} Kf7 {[%emt 0:01:52]} (30... f5 $1 $17 {[%cal Rf5g4]} 31. gxf5 Nxf5) 31. Rae2 $11 {[%emt 0:00:50]} Rh8 {[%emt 0:00:53]} ({Black should try} 31... Qd8 $11) 32. e4 $14 {[%emt 0:08:28]} dxe4 {[%emt 0:00:13] White has space advantage and is better} 33. Qb3+ {[%emt 0:00:08]} (33. g5 $14 fxg5 34. fxe4) 33... Kg7 $11 {[%emt 0:00:36]} 34. d5 {[%emt 0:00:26]} cxd5 {[%emt 0:01:22]} 35. Qxd5 {[%emt 0:00:10]} Nf7 {[%emt 0:00:37][%mdl 8192] [#]} (35... Rd8 $11 {and Black stays safe.}) 36. Rxe4 $18 {[%emt 0:00:30]} Rxe4 {[%emt 0:00:29]} (36... Ne5 {keeps fighting.} 37. Qd6 (37. g5 Rd8 $18) 37... Qd8 38. Qxd8 (38. Ne6+ Rxe6 39. Qxe6 Re8 $18) 38... Rxd8) 37. Rxe4 {[%emt 0:00:14]} ({Less strong is} 37. Nxe4 Re8 38. Qd2 Re7 $14) (37. Qxe4 $142 g5 38. Ne6+ (38. Qxb7 Qxb7 39. Nxb7 Rb8 $16) (38. Nxb7 h5 $18) 38... Kg8 39. f4) 37... b6 $2 {[%emt 0:00:42]} (37... Re8 38. Qxb7 (38. Nxb7 Qc1+ 39. Kh2 Qc7+ 40. f4 Rxe4 $18) 38... a5 39. Ne6+ Kg8 40. Qxc8 Rxc8 41. bxa5 Ne5) 38. Re7 {[%emt 0:01:22][%cal Be4e7,Be7f7,Bf7f6][%mdl 32]} bxc5 {[%emt 0:00:28]} 39. Rxf7+ {[%emt 0:00:24] White mates.} Kh6 {[%emt 0:00:02]} 40. Qd2+ {[%emt 0:00:11]} g5 {[%emt 0:00:57]} 41. Rxf6+ {[%emt 0:50:04]} Kg7 {[%emt 0:50:07]} 42. Qxg5# {[%emt 0:00:03] Weighted Error Value: White=0.27 (precise) /Black=0.61  Loses game:     	---       	Black=1      Mistake:       	White=3     	Black=4      Inaccurate:     	White=4     	Black=3      OK:         	White=10    	Black=11     Best:        	White=2     	Black=3} 1-0

[Event "4NCL Div 2 2024-25"]
[Site "England"]
[Date "2025.01.26"]
[Round "4.6"]
[White "Turner, Lewis A"]
[Black "Udovenko, Daniel"]
[Result "0-1"]
[Annotator "TA"]
[ECO "B90"]
[WhiteElo "1984"]
[BlackElo "1941"]
[PlyCount "92"]
[EventDate "2024.11.23"]
[EventType "team-tourn"]
[EventCountry "ENG"]
[SourceTitle "playchess.com"]
[Source "ChessBase"]
[SourceQuality "1"]
[TimeControl "40/6000+30:3000+30"]

{[%evp 23,92,0,20,24,35,21,32,5,0,0,15,11,15,0,39,33,24,0,12,19,10,0,0,0,0,0,0,0,0,-24,0,0,0,0,0,-22,-25,-21,-15,-37,-29,-75,-38,-72,-37,-35,-41,-41,-35,-184,-183,-226,-221,-247,-245,-304,-310,-308,-325,-318,-335,-488,-452,-646,-599,-619,-602,-531,-446,-1992,-1978]} 1. e4 {[%emt 0:10:02]} c5 {[%emt 0:11:10]} 2. Nf3 {[%emt 0:00:06]} d6 {[%emt 0:00:04]} 3. d4 {[%emt 0:00:04]} cxd4 {[%emt 0:00:03]} 4. Nxd4 {[%emt 0:00:03]} Nf6 {[%emt 0:00:05]} 5. Nc3 {[%emt 0:00:04]} a6 {[%emt 0:00:49]} 6. f3 {[%emt 0:00:06]} e5 {[%emt 0:00:15]} 7. Nb3 {[%emt 0:00:07]} Be6 {[%emt 0:00:10]} 8. Be3 {[%emt 0:00:07]} Be7 {[%emt 0:00:08]} 9. Qd2 {[%emt 0:00:10]} Nbd7 {[%emt 0:00:09]} 10. g4 {[%emt 0:00:11]} O-O {[%emt 0:00:51]} 11. O-O-O {[%emt 0:00:08]} b5 {[%emt 0:00:23]} 12. g5 {[%emt 0:00:06]} Nh5 {[%emt 0:00:05] now supersedes 12...b4.} (12... b4 $5 13. gxf6 bxc3 14. Qxc3 Nxf6 $11) 13. Kb1 {[%emt 0:00:33] B90: Sicilian Najdorf: Unusual White 6th moves, 6 Be3 Ng4 and 6 Be3 e5.} Nb6 {[%emt 0:20:34]} 14. Na5 {[%emt 0:01:23]} Rc8 {[%emt 0:09:25] Prevents Nc6} 15. Nd5 {[%emt 0:01:01] White is slightly better.} Nxd5 {[%emt 0:06:02]} 16. exd5 {[%emt 0:02:58]} Bxd5 {[%emt 0:03:20]} 17. Qxd5 {[%emt 0:00:08]} Qxa5 {[%emt 0:00:17]} 18. c4 {[%emt 0:00:09]} Nf4 {[%emt 0:14:14]} 19. Bxf4 {[%emt 0:01:06]} exf4 {[%emt 0:03:42]} 20. Bd3 {[%emt 0:02:47]} g6 {[%emt 0:02:48] Black is weak on the light squares} 21. h4 {[%emt 0:01:53]} Rc5 {[%emt 0:03:59]} 22. Qe4 {[%emt 0:01:19]} bxc4 {[%emt 0:02:43]} 23. Bxc4 {[%emt 0:00:53]} Rb8 $146 {[%emt 0:03:29][%cal Oa5b4] Wards off Bb3} (23... Rfc8 24. Bb3 Bf8 25. Qxf4 Rf5 26. Qe4 Qb5 27. Rd5 Rc5 28. Rxf5 {½-½ Koch,C (2268)-Usmanoff,R (2298) RA-2017-0-00495 2016}) 24. Bb3 {[%emt 0:05:31]} Bf8 {[%emt 0:02:51]} 25. Qxf4 {[%emt 0:41:46]} Rf5 {[%emt 0:01:20]} 26. Qh2 {[%emt 0:02:45]} Qe5 {[%emt 0:01:11]} (26... Rxf3 {keeps more tension.} 27. Qc2 Qe5 28. Rhf1 Rxf1 29. Rxf1 d5) 27. Qxe5 {[%emt 0:06:35]} Rxe5 {[%emt 0:00:52]} 28. Rc1 {[%emt 0:04:43]} Rf5 {[%emt 0:03:11][%cal Of8g7]} 29. Rc6 {[%emt 0:02:19]} a5 {[%emt 0:01:08]} 30. Ra6 {[%emt 0:00:24]} Bg7 {[%emt 0:01:29]} 31. Rd1 {[%emt 0:03:57]} Be5 {[%emt 0:19:13]} 32. Rd3 {[%emt 0:06:09]} (32. Rxa5 $11 Rxf3 33. Rc1) 32... Bg3 {[%emt 0:00:00]} 33. Bd5 {[%emt 0:00:56]} Rb5 {[%emt 0:00:00]} (33... Bxh4 34. Rxa5 Bxg5 (34... Rxg5 $2 35. b3 $17) 35. a4) 34. Be4 {[%emt 0:04:03] [#] aiming for a4.} Rfc5 {[%emt 0:00:00]} 35. Ra8+ {[%emt 0:04:41]} Kg7 {[%emt 0:00:00][%cal Od6d5]} 36. Rd8 {[%emt 0:03:05] This costs White the game.} (36. Ra7 $1 $15) 36... Bxh4 $19 {[%emt 0:00:00]} 37. f4 {[%emt 0:01:02]} Rb4 {[%emt 0:00:00]} 38. Re8 {[%emt 0:01:40] [#]} d5 {[%emt 0:00:00][%mdl 512]} 39. Bxd5 {[%emt 0:01:52]} (39. Bg2 Rxf4) 39... Rxf4 {[%emt 0:00:00] ( -> ...Rf1+)} 40. a3 {[%emt 0:02:19]} Bxg5 {[%emt 0:00:00]} 41. Ra8 {[%emt 0:21:26]} h5 {[%emt 0:20:07]} 42. Bb3 {[%emt 0:01:09]} (42. Ra7 {was forced.}) 42... Rf2 {[%emt 0:04:16] Black is clearly winning.} 43. Ra7 {[%emt 0:03:48]} (43. Ba4 $142) 43... Bc1 {[%emt 0:01:57]} 44. Rc3 {[%emt 0:01:41]} Rxc3 {[%emt 0:01:55]} ({Not} 44... Bxb2 45. Rxc5 Bd4 (45... Bxa3 $2 {too greedy.} 46. Rb5 $18) 46. Rcc7 Bxa7 47. Rxa7 $17) (44... Rxb2+ 45. Kxc1 Rxc3+ 46. Kxb2 $11) 45. bxc3 {[%emt 0:00:05]} Bxa3 {[%emt 0:00:07] Threatens to win with ...Rb2+.} 46. Rxa5 {[%emt 0:00:11]} (46. Bc4 $142) 46... Rb2+ {[%emt 0:01:52] Weighted Error Value: White=0.48/Black=0.11 (very precise)   Mistake:       	White=4     	---        Inaccurate:     	White=2     	Black=3      OK:         	White=9     	Black=16     Best:        	---       	Black=4} 0-1

[Event "4NCL Div 2 2024-25"]
[Site "England"]
[Date "2025.01.26"]
[Round "4.7"]
[White "Pozimski, Szymon"]
[Black "Pilley, Jack"]
[Result "0-1"]
[Annotator "TA"]
[ECO "E11"]
[WhiteElo "2003"]
[BlackElo "1937"]
[PlyCount "56"]
[EventDate "2024.11.23"]
[EventType "team-tourn"]
[EventCountry "ENG"]
[SourceTitle "playchess.com"]
[Source "ChessBase"]
[SourceQuality "1"]
[TimeControl "40/6000+30:3000+30"]

{[%evp 12,56,6,15,23,-10,0,6,33,29,43,7,22,10,121,77,93,92,108,109,86,0,0,0,0,0,0,0,0,0,12,0,0,0,11,4,10,0,35,20,20,16,433,-1106,-1065,-2273,-2193]} 1. c4 {[%emt 0:10:01]} Nf6 {[%emt 0:10:01]} 2. Nf3 {[%emt 0:00:37]} e6 {[%emt 0:01:32]} 3. g3 {[%emt 0:02:43]} d5 {[%emt 0:00:10]} 4. d4 {[%emt 0:00:01]} Bb4+ {[%emt 0:00:05]} 5. Bd2 {[%emt 0:00:19]} a5 {[%emt 0:00:01]} 6. Qc2 {[%emt 0:01:24]} O-O {[%emt 0:05:10]} 7. Bg2 {[%emt 0:00:24]} b6 {[%emt 0:02:39] E11: Bogo-Indian.} 8. Ne5 {[%emt 0:06:49]} Bb7 {[%emt 0:06:17]} 9. O-O {[%emt 0:01:53]} Be7 {[%emt 0:16:32] The position is equal.} 10. Nc3 {[%emt 0:01:37]} Nbd7 {[%emt 0:06:27]} 11. Nd3 $146 {[%emt 0:13:19]} (11. cxd5 exd5 12. Rac1 Rc8 13. Bh3 c5 14. Qa4 cxd4 15. Nxd7 Rc4 16. Qb5 dxc3 17. Bxc3 {0-1 Zilberman,Y (2348)-Boruchovsky,A (2525) Dov Porath Memorial rapid 2018 (2)}) 11... c5 {[%emt 0:07:49]} 12. dxc5 {[%emt 0:02:19]} dxc4 {[%emt 0:07:06]} (12... bxc5 $11 13. cxd5 exd5) 13. Bxb7 $16 {[%emt 0:23:00]} cxd3 {[%emt 0:00:28]} 14. exd3 {[%emt 0:00:40]} Rb8 {[%emt 0:02:52]} 15. c6 {[%emt 0:02:01]} Nc5 {[%emt 0:00:29][%csl LRb7,LRd3] [#]} 16. Bf4 {[%emt 0:09:08]} (16. Na4 $1 $16) 16... Bd6 $11 {[%emt 0:03:09]} 17. Bxd6 {[%emt 0:02:26]} Qxd6 {[%emt 0:00:14]} 18. Ne4 {[%emt 0:01:06]} Nfxe4 {[%emt 0:12:40]} 19. dxe4 {[%emt 0:00:08]} Nxb7 {[%emt 0:00:04]} 20. cxb7 {[%emt 0:00:13]} Rxb7 {[%emt 0:00:04]} 21. Rfd1 $36 {[%emt 0:00:36][%mdl 2048] Black is under pressure.} Qe5 {[%emt 0:01:06]} 22. Rac1 {[%emt 0:00:54]} Rbb8 {[%emt 0:01:47]} 23. Rd7 {[%emt 0:06:17]} h6 {[%emt 0:02:15]} 24. b3 {[%emt 0:06:08]} h5 {[%emt 0:10:33][%cal Oh5h4]} 25. Qc7 {[%emt 0:05:52]} Qxe4 {[%emt 0:01:55]} 26. Rxf7 {[%emt 0:00:09]} Rfc8 $2 {[%emt 0:00:17][%mdl 8192] [#]} (26... Rxf7 $11 {and Black is okay.} 27. Qxb8+ Rf8 28. Qxb6 h4) 27. Qf4 $4 {[%emt 0:05:34][%mdl 8192]} (27. Qxc8+ $2 {is the wrong capture.} Rxc8 $19) (27. Rxg7+ $18 Kh8 28. Rh7+ Qxh7 29. Qxc8+ Rxc8 30. Rxc8+ Kg7 31. Rc7+ Kh8 32. Rxh7+ Kxh7 33. Kg2) 27... Qxf4 $19 {[%emt 0:00:08]} 28. Rxc8+ {[%emt 0:00:05]} Kxf7 {[%emt 0:00:02] Weighted Error Value: White=0.55/Black=0.42  Loses game:     	---       	Black=1      Missed win:     	White=1     	---        Mistake:       	White=1     	Black=1      Inaccurate:     	White=3     	Black=2      OK:         	White=9     	Black=5      Best:        	White=1     	Black=2} 0-1

[Event "4NCL Div 2 2024-25"]
[Site "England"]
[Date "2025.01.26"]
[Round "4.8"]
[White "Barwick, Carmel"]
[Black "Hariharan, Shambavi"]
[Result "1/2-1/2"]
[Annotator "TA"]
[ECO "C44"]
[WhiteElo "1895"]
[BlackElo "1940"]
[PlyCount "115"]
[EventDate "2024.11.23"]
[EventType "team-tourn"]
[EventCountry "ENG"]
[SourceTitle "playchess.com"]
[Source "ChessBase"]
[SourceQuality "1"]
[TimeControl "40/6000+30:3000+30"]

{[%evp 11,115,26,35,48,37,37,39,32,81,0,18,4,3,0,0,0,3,-44,-36,-37,-31,-24,-29,-35,-44,-50,-46,-46,-45,-46,-41,-54,-58,-55,-14,-15,-17,-21,-20,-21,-18,-27,-37,-37,0,0,0,-14,-14,-14,0,0,0,0,-8,-15,-6,-14,-3,-263,-243,-461,-461,-454,-256,-431,-40,-40,0,0,0,0,0,0,0,0,0,0,0,-35,-35,-35,0,0,0,0,0,0,0,0,0,0,0,0,0,0,0,0,0,0,0,0,0,0,0,0]} 1. e4 {[%emt 0:10:03]} e5 {[%emt 0:10:05]} 2. Nf3 {[%emt 0:00:06]} Nc6 {[%emt 0:00:04]} 3. d4 {[%emt 0:00:11]} exd4 {[%emt 0:00:18]} 4. Bc4 {[%emt 0:00:10]} Bc5 {[%emt 0:02:58]} 5. c3 {[%emt 0:00:23]} d3 {[%emt 0:00:38]} 6. Qxd3 {[%emt 0:16:43]} d6 {[%emt 0:02:07]} 7. b4 {[%emt 0:05:01] C44: Ponziani Opening and Scotch Gambit.} Bb6 {[%emt 0:00:45]} 8. Bg5 {[%emt 0:10:31]} Nge7 {[%emt 0:03:38]} 9. O-O {[%emt 0:01:19] White is slightly better.} Be6 {[%emt 0:08:18]} (9... h6 $14 {feels stronger.} 10. Bh4 g5) 10. Bb5 $146 {[%emt 0:07:30] White is more active.} (10. Bxe6 $16 fxe6 11. a4) (10. Bb3 O-O 11. Nbd2 Bxb3 12. Nxb3 Qd7 13. b5 Nd8 14. e5 Ne6 15. exd6 cxd6 16. Rad1 {1-0 Rehberg,R (1770)-Dinger,F GER-ch U12 Willingen 2001 (8)}) 10... f6 {[%emt 0:06:11]} 11. Be3 {[%emt 0:05:24]} O-O {[%emt 0:01:47]} 12. Bc4 {[%emt 0:14:31]} Bxc4 {[%emt 0:01:48]} 13. Qxc4+ {[%emt 0:00:06]} Kh8 {[%emt 0:02:41]} 14. Nd4 {[%emt 0:03:02]} (14. Re1 $11) 14... Nxd4 $15 {[%emt 0:01:21]} 15. Bxd4 {[%emt 0:00:22]} d5 {[%emt 0:01:06]} 16. exd5 {[%emt 0:01:20]} Qxd5 {[%emt 0:00:49]} 17. Qxd5 {[%emt 0:05:24]} Nxd5 {[%emt 0:00:08]} 18. a3 {[%emt 0:08:47]} Bxd4 {[%emt 0:01:14]} 19. cxd4 {[%emt 0:00:06]} c6 {[%emt 0:00:15]} 20. g3 {[%emt 0:01:24]} Rad8 {[%emt 0:00:21]} 21. Nd2 {[%emt 0:01:11]} Nc3 {[%emt 0:02:34]} 22. Nb3 {[%emt 0:00:22]} Ne2+ {[%emt 0:01:23]} 23. Kg2 {[%emt 0:00:08]} Nxd4 {[%emt 0:00:20]} 24. Nxd4 {[%emt 0:00:21]} Rxd4 $11 {[%emt 0:00:04][%mdl 4096] Endgame KRR-KRR. Black is a pawn up.} 25. Rad1 {[%emt 0:00:22]} Rfd8 {[%emt 0:09:00]} 26. Rxd4 {[%emt 0:00:11]} Rxd4 {[%emt 0:00:05] KR-KR. Black is a pawn up.} 27. Re1 {[%emt 0:00:07][%cal Re1e8] [#]} h6 {[%emt 0:00:06]} 28. Re7 {[%emt 0:00:13] Dodges Rd7} Rd3 {[%emt 0:00:20]} 29. Rxb7 {[%emt 0:02:10]} Rxa3 {[%emt 0:00:16]} 30. Rc7 {[%emt 0:00:39]} Rb3 {[%emt 0:00:37]} 31. Rxc6 {[%emt 0:00:45]} Rxb4 {[%emt 0:00:07]} 32. Ra6 {[%emt 0:00:12]} Rb7 {[%emt 0:00:08]} 33. Kf3 {[%emt 0:00:28]} Kh7 {[%emt 0:00:45]} 34. h4 {[%emt 0:00:33]} h5 {[%emt 0:01:02]} 35. g4 $2 {[%emt 0:02:04][%mdl 8192] [#]} (35. Kf4 $11) 35... Rb3+ $1 $19 {[%emt 0:01:17]} 36. Kg2 $2 {[%emt 0:00:25]} (36. Kf4 {was worth a try.} hxg4 (36... Rb4+ 37. Kg3 $15) 37. Kxg4) 36... hxg4 {[%emt 0:01:06]} 37. Rxa7 {[%emt 0:00:10]} f5 {[%emt 0:00:36]} (37... Rh3 $142 38. Rf7 Kh6 (38... Rxh4 39. Kg3 $11)) 38. Ra5 $2 {[%emt 0:08:56]} (38. Rf7 Kg6 39. Rc7) 38... g6 $2 {[%emt 0:01:33]} (38... Rf3 $19 39. Rd5 g6 40. Rd7+ Kh6) 39. h5 $1 $15 {[%emt 0:01:04]} gxh5 {[%emt 0:00:58]} 40. Rxf5 {[%emt 0:00:12]} Kg6 {[%emt 0:00:03]} 41. Ra5 {[%emt 0:55:29]} Rf3 {[%emt 0:51:23]} 42. Rb5 {[%emt 0:00:26]} h4 {[%emt 0:02:07]} 43. Rb6+ {[%emt 0:00:00]} Kg5 {[%emt 0:00:00]} 44. Rb5+ {[%emt 0:00:00]} Rf5 {[%emt 0:00:00]} 45. Rb3 {[%emt 0:00:00]} Rd5 {[%emt 0:00:00]} 46. Ra3 {[%emt 0:00:00]} h3+ {[%emt 0:00:00]} 47. Kg3 {[%emt 0:00:00] The position is equal.} Rd1 {[%emt 0:00:00]} 48. Ra5+ {[%emt 0:00:00]} Kf6 {[%emt 0:00:00]} 49. Ra6+ {[%emt 0:00:00]} (49. Kxg4 $2 h2 50. Ra6+ Ke5 51. Ra5+ Ke4 52. Ra4+ Kd3 53. Ra3+ Kc4 $19) 49... Kf5 {[%emt 0:00:00]} 50. Ra5+ {[%emt 0:00:00]} Ke6 {[%emt 0:00:00]} 51. Ra6+ {[%emt 0:00:00]} (51. Kxg4 $2 h2 52. Ra6+ Kd5 53. Ra5+ Kc4 $19) 51... Kd5 {[%emt 0:00:00] ...Rg1+ is the strong threat.} 52. Ra5+ {[%emt 0:00:00]} (52. Kxg4 $2 h2 53. Ra5+ Kc4 $19) 52... Kc6 {[%emt 0:00:00]} 53. Kh2 {[%emt 0:00:00] Against Rg1} (53. Kxg4 $2 {is the wrong capture.} h2 54. Ra6+ Kc5 55. Ra5+ Kc4 $19) 53... Rd5 {[%emt 0:00:00]} 54. Ra6+ {[%emt 0:00:00]} Kc5 {[%emt 0:00:00]} 55. Rh6 {[%emt 0:00:00]} Rg5 {[%emt 0:00:00]} 56. Kg3 {[%emt 0:00:11]} Kd4 {[%emt 0:00:00]} 57. f3 {[%emt 0:01:05]} gxf3+ {[%emt 0:00:00]} 58. Kxf3 {[%emt 0:00:06] Weighted Error Value: White=0.24 (precise) /Black=0.25 (precise)   Loses game:     	White=1     	---        Missed win:     	---       	Black=1      Mistake:       	White=4     	Black=2      Inaccurate:     	White=1     	Black=4      OK:         	White=21    	Black=14     Best:        	White=2     	Black=1      Strong:       	White=1     	Black=1} 1/2-1/2

[Event "4NCL Div 2 2024-25"]
[Site "England"]
[Date "2025.01.26"]
[Round "4.9"]
[White "Pein, Jonathan"]
[Black "Mestel, A Jonathan"]
[Result "1-0"]
[Annotator "TA"]
[ECO "B13"]
[WhiteElo "2249"]
[BlackElo "2458"]
[PlyCount "79"]
[EventDate "2024.11.23"]
[EventType "team-tourn"]
[EventCountry "ENG"]
[SourceTitle "playchess.com"]
[Source "ChessBase"]
[SourceQuality "1"]
[TimeControl "40/6000+30:3000+30"]

{[%evp 24,79,23,22,28,20,36,31,39,18,30,15,42,34,71,76,64,24,60,56,66,57,68,44,40,3,41,36,47,44,45,43,47,22,41,14,41,8,35,14,201,204,346,367,365,0,190,190,342,342,331,332,324,335,495,491,453,402]} 1. e4 {[%emt 0:10:03]} c6 {[%emt 0:10:19]} 2. d4 {[%emt 0:00:40]} d5 {[%emt 0:00:08]} 3. exd5 {[%emt 0:05:37]} cxd5 {[%emt 0:00:10]} 4. Bd3 {[%emt 0:00:02]} Nc6 {[%emt 0:01:52]} 5. c3 {[%emt 0:00:02]} Nf6 {[%emt 0:00:50]} 6. Bf4 {[%emt 0:00:04]} Bg4 {[%emt 0:02:16]} 7. Qb3 {[%emt 0:00:02]} Qd7 {[%emt 0:00:10]} 8. Nd2 {[%emt 0:00:08]} e6 {[%emt 0:01:02]} 9. Ngf3 {[%emt 0:00:04]} Bd6 {[%emt 0:00:38]} 10. Bxd6 {[%emt 0:01:51]} Qxd6 {[%emt 0:00:26]} 11. O-O {[%emt 0:00:24]} O-O {[%emt 0:02:09][%cal Be8g8,Bg8g7,Bg7h8][%mdl 32]} 12. Rae1 {[%emt 0:00:18]} Bxf3 {[%emt 0:12:10]} 13. Nxf3 {[%emt 0:00:02][%cal Of3e5]} Qc7 {[%emt 0:00:33]} 14. Qc2 {[%emt 0:05:33]} g6 {[%emt 0:14:38]} 15. Qe2 {[%emt 0:11:06]} Kg7 {[%emt 0:10:00] White is slightly better.} 16. Nh4 {[%emt 0:07:32]} Rae8 {[%emt 0:16:28]} 17. f4 {[%emt 0:02:10]} Re7 {[%emt 0:03:22]} (17... Ne7 {keeps more tension.} 18. Qe5 Rc8 19. Rf2 Nc6) 18. g4 {[%emt 0:10:48]} Rfe8 {[%emt 0:12:08]} 19. Qg2 {[%emt 0:05:00]} Kh8 {[%emt 0:03:00]} 20. Re3 {[%emt 0:01:46][%cal Be1e3,Be3h3,Bh3h4][%mdl 32]} Rg8 {[%emt 0:03:03]} 21. Rh3 {[%emt 0:03:06]} Ne8 {[%emt 0:02:36]} 22. Kh1 {[%emt 0:08:40] White is more active.} Nd6 {[%emt 0:00:33]} 23. Qg3 {[%emt 0:11:11]} Rg7 {[%emt 0:02:45]} 24. g5 {[%emt 0:06:53]} Nf5 {[%emt 0:02:15]} 25. Qf2 {[%emt 0:02:38]} Nxh4 {[%emt 0:01:06]} 26. Rxh4 {[%emt 0:01:15]} Re8 {[%emt 0:00:31]} 27. Re1 {[%emt 0:03:05][%cal Of4f5,Bf1e1,Be1e3,Be3h3][%mdl 32]} Ne7 {[%emt 0:01:12]} 28. Re3 {[%emt 0:02:42]} a6 {[%emt 0:00:20]} 29. Kg1 {[%emt 0:02:34]} Qd7 {[%emt 0:00:07]} 30. Qe1 {[%emt 0:01:59]} Rf8 {[%emt 0:00:15]} 31. Rh6 {[%emt 0:02:45] Strongly threatening Reh3.} Qd8 $2 {[%emt 0:01:40]} (31... Qc7 $11) 32. Reh3 $1 $18 {[%emt 0:02:17] White wants to mate with Qh4.} Ng8 {[%emt 0:00:11] [#]} (32... f5 $142 33. Qe5 (33. Qxe6 Qc7 $18) 33... Kg8 34. Qxe6+ Kh8) 33. Qe5 $1 {[%emt 0:02:12][%csl Gh3][%cal Rh6h7]} f6 {[%emt 0:00:07] [#]} 34. gxf6 {[%emt 0:01:20]} ({Only move:} 34. Rxg6 $1 $18 Rff7 (34... fxe5 $2 35. Rxg7 $18) 35. Qxe6) 34... Qxf6 {[%emt 0:00:36]} (34... Rxf6 $11 {and Black stays safe.} 35. R6h4 (35. Rxg6 $2 {too greedy.} Rfxg6+ 36. Bxg6 Qf6 $19) 35... Qa5) 35. Rxg6 $40 {[%emt 0:01:11][%mdl 128] Black is in trouble.} Qxe5 {[%emt 0:03:40]} (35... Rff7) 36. fxe5 {[%emt 0:00:08] Hoping for Rxg7.} (36. dxe5 Rxf4 37. Rxg7 Kxg7 $16) 36... Rff7 {[%emt 0:00:01] And now ...Rxg6+ would win.} 37. Rxg7 {[%emt 0:00:54]} Rxg7+ {[%emt 0:00:02]} 38. Kf2 {[%emt 0:00:04]} Ne7 {[%emt 0:00:35]} (38... Re7 {keeps fighting.} 39. a4 Rg7) 39. Rh6 {[%emt 0:00:49]} Rf7+ {[%emt 0:03:23]} 40. Ke2 {[%emt 0:00:28] Weighted Error Value: White=0.24 (precise) /Black=0.50.  Loses game:     	---       	Black=2      Missed win:     	White=1     	---        Mistake:       	---       	Black=3      Inaccurate:     	White=4     	Black=6      OK:         	White=6     	Black=7      Best:        	White=2     	---        Strong:       	White=2     	---} 1-0